fUSD/lending_fUSD_20250301
["ID","MTS","AMOUNT","RATE_DAILY","PERIOD"]
[354936395,1740833446089,-500.0,0.00027397,2]
[354936396,1740833446099,-500.0,0.00027397,2]
[354936397,1740833446109,-500.0,0.00027397,2]
[354936398,1740833446119,-1338.91,0.00027397,2]
[354936399,1740833446129,-500.0,0.00027397,2]
[354936400,1740833446140,-500.0,0.00027397,2]
[354936401,1740833446150,-500.0,0.00027397,2]
[354936402,1740833446160,-500.0,0.00027397,2]
[354936403,1740833446170,-500.0,0.00027397,2]
[354936404,1740833446181,-500.0,0.00027397,2]
[354936405,1740833446191,-500.0,0.00027397,2]
[354936406,1740833446201,-879.56,0.00027397,2]
[354936407,1740833446211,-500.0,0.00027397,2]
[354936408,1740833446222,-500.0,0.00027397,2]
[354936409,1740833446231,-500.0,0.00027397,2]
[354936410,1740833446241,-921.34,0.00027397,2]
[354936411,1740833446252,-1621.54,0.00027397,2]
[354936412,1740833446262,-500.0,0.00027397,2]
[354936413,1740833446271,-1918.04,0.00027397,2]
[354936414,1740833446281,-500.0,0.00027397,2]
[354936415,1740833446290,-506.6262612,0.00027397,2]
[354936416,1740833446300,-500.0,0.00027397,2]
[354936417,1740833446309,-500.0,0.00027397,2]
[354936418,1740833446321,-500.0,0.00027397,2]
[354936419,1740833446331,-162.66179771,0.00027397,2]
[354936420,1740833446340,-672.28,0.00027397,2]
[354936421,1740833446351,-513.91444384,0.00027397,2]
[354936422,1740833446360,-508.74166785,0.00027397,2]
[354936423,1740833446370,-500.0,0.00027397,2]
[354936424,1740833446380,-2059.87,0.00027397,2]
[354936425,1740833446391,-513.4155491,0.00027397,2]
[354936426,1740833446400,-500.0,0.00027397,2]
[354936427,1740833446411,-500.0,0.00027397,2]
[354936428,1740833446421,-1329.35,0.00027397,2]
[354936429,1740833446431,-500.0,0.00027397,2]
[354936430,1740833446440,-500.0,0.00027397,2]
[354936431,1740833446451,-648.59,0.00027397,2]
[354936432,1740833446462,-500.0,0.00027397,2]
[354936433,1740833446472,-500.0,0.00027397,2]
[354936434,1740833446481,-500.0,0.00027397,2]
[354936435,1740833446491,-500.0,0.00027397,2]
[354936436,1740833446501,-500.0,0.00027397,2]
[354936437,1740833446511,-505.21970261,0.00027397,2]
[354936438,1740833446521,-1216.12,0.00027397,2]
[354936439,1740833446530,-500.0,0.00027397,2]
[354936440,1740833446540,-1671.04,0.00027397,2]
[354936441,1740833446550,-529.66469183,0.00027397,2]
[354936442,1740833446561,-500.0,0.00027397,2]
[354936443,1740833446571,-504.78182735,0.00027397,2]
[354936444,1740833446581,-500.0,0.00027397,2]
[354936445,1740833446591,-1697.27,0.00027397,2]
[354936446,1740833446600,-500.0,0.00027397,2]
[354936447,1740833446611,-202.65254659,0.00027397,2]
[354936448,1740833446621,-500.0,0.00027397,2]
[354936449,1740833446631,-500.0,0.00027397,2]
[354936450,1740833446641,-1086.41,0.00027397,2]
[354936451,1740833446652,-520.97687334,0.00027397,2]
[354936452,1740833446662,-1472.18,0.00027397,2]
[354936453,1740833446671,-500.0,0.00027397,2]
[354936454,1740833446681,-500.0,0.00027397,2]
[354936455,1740833446690,-500.0,0.00027397,2]
[354936456,1740833446700,-901.14,0.00027397,2]
[354936457,1740833446709,-500.0,0.00027397,2]
[354936458,1740833446719,-500.0,0.00027397,2]
[354936459,1740833446729,-500.0,0.00027397,2]
[354936460,1740833446739,-500.0,0.00027397,2]
[354936461,1740833446749,-500.0,0.00027397,2]
[354936462,1740833446759,-507.69814669,0.00027397,2]
[354936463,1740833446768,-500.0,0.00027397,2]
[354936464,1740833446778,-675.01,0.00027397,2]
[354936465,1740833446788,-500.0,0.00027397,2]
[354936466,1740833446798,-1538.15,0.00027397,2]
[354936467,1740833446808,-500.0,0.00027397,2]
[354936468,1740833446818,-1304.63,0.00027397,2]
[354936469,1740833446830,-500.0,0.00027397,2]
[354936470,1740833446839,-385.50516724,0.00027397,2]
[354936471,1740833446850,-2425.02,0.00027397,2]
[354936472,1740833446859,-1212.57,0.00027397,2]
[354936473,1740833446869,-500.0,0.00027397,2]
[354936474,1740833446879,-500.0,0.00027397,2]
[354936475,1740833446889,-2009.02,0.00027397,2]
[354936476,1740833446900,-500.0,0.00027397,2]
[354936477,1740833446910,-1346.92,0.00027397,2]
[354936478,1740833446920,-500.0,0.00027397,2]
[354936479,1740833446930,-500.0,0.00027397,2]
[354936480,1740833446940,-500.0,0.00027397,2]
[354936481,1740833446950,-500.0,0.00027397,2]
[354936482,1740833446960,-247.54117206,0.00027397,2]
[354936483,1740833446970,-500.0,0.00027397,2]
[354936484,1740833446979,-500.0,0.00027397,2]
[354936485,1740833446990,-1307.01,0.00027397,2]
[354936486,1740833446999,-500.0,0.00027397,2]
[354936487,1740833447009,-500.0,0.00027397,2]
[354936488,1740833447196,-988.81,0.00027397,2]
[354936489,1740833447208,-500.0,0.00027397,2]
[354936490,1740833447219,-500.0,0.00027397,2]
[354936491,1740833447228,-500.0,0.00027397,2]
[354936492,1740833447238,-500.0,0.00027397,2]
[354936493,1740833447247,-500.0,0.00027397,2]
[354936494,1740833447257,-503.26854898,0.00027397,2]
[354936495,1740833447267,-500.0,0.00027397,2]
[354936496,1740833447277,-500.0,0.00027397,2]
[354936497,1740833447287,-500.0,0.00027397,2]
[354936498,1740833447296,-500.0,0.00027397,2]
[354936499,1740833447307,-915.53,0.00027397,2]
[354936500,1740833447316,-942.82,0.00027397,2]
[354936501,1740833447326,-500.0,0.00027397,2]
[354936502,1740833447335,-1520.98,0.00027397,2]
[354936503,1740833447345,-500.0,0.00027397,2]
[354936504,1740833447355,-500.0,0.00027397,2]
[354936505,1740833447364,-157.78019433,0.00027397,2]
[354936506,1740833447374,-500.0,0.00027397,2]
[354936507,1740833447383,-518.16022134,0.00027397,2]
[354936508,1740833447393,-500.0,0.00027397,2]
[354936509,1740833447403,-784.84,0.00027397,2]
[354936510,1740833447412,-500.0,0.00027397,2]
[354936511,1740833447421,-161.33300288,0.00027397,2]
[354936512,1740833447431,-828.28,0.00027397,2]
[354936513,1740833447440,-500.0,0.00027397,2]
[354936514,1740833447449,-393.73515844,0.00027397,2]
[354936515,1740833447459,-1565.33,0.00027397,2]
[354936516,1740833447468,-500.0,0.00027397,2]
[354936517,1740833447478,-500.0,0.00027397,2]
[354936518,1740833447487,-500.0,0.00027397,2]
[354936519,1740833447497,-500.0,0.00027397,2]
[354936520,1740833447507,-506.28666807,0.00027397,2]
[354936521,1740833447517,-500.0,0.00027397,2]
[354936522,1740833447526,-500.0,0.00027397,2]
[354936523,1740833447535,-898.35,0.00027397,2]
[354936524,1740833447544,-500.0,0.00027397,2]
[354936525,1740833447554,-500.0,0.00027397,2]
[354936526,1740833447564,-1946.13,0.00027397,2]
[354936527,1740833447574,-1002.79,0.00027397,2]
[354936528,1740833447584,-500.0,0.00027397,2]
[354936529,1740833447594,-155.53689919,0.00027397,2]
[354936530,1740833447604,-500.0,0.00027397,2]
[354936531,1740833447615,-500.0,0.00027397,2]
[354936532,1740833447624,-500.0,0.00027397,2]
[354936533,1740833447633,-500.0,0.00027397,2]
[354936534,1740833447643,-503.67365826,0.00027397,2]
[354936535,1740833447652,-1192.7,0.00027397,2]
[354936536,1740833447661,-500.0,0.00027397,2]
[354936537,1740833447670,-500.0,0.00027397,2]
[354936538,1740833447680,-1060.08,0.00027397,2]
[354936539,1740833447689,-1031.15,0.00027397,2]
[354936540,1740833447698,-500.0,0.00027397,2]
[354936541,1740833447708,-500.0,0.00027397,2]
[354936542,1740833447717,-500.0,0.00027397,2]
[354936543,1740833447727,-332.29830741,0.00027397,2]
[354936544,1740833447736,-500.0,0.00027397,2]
[354936545,1740833447746,-500.0,0.00027397,2]
[354936546,1740833447755,-1049.75,0.00027397,2]
[354936547,1740833447764,-500.0,0.00027397,2]
[354936548,1740833447773,-1591.7,0.00027397,2]
[354936549,1740833447782,-500.0,0.00027397,2]
[354936550,1740833447791,-628.69573993,0.00027397,2]
[354936551,1740833447801,-504.50639624,0.00027397,2]
[354936552,1740833447810,-500.0,0.00027397,2]
[354936553,1740833447820,-510.60293719,0.00027397,2]
[354936554,1740833447830,-506.15352918,0.00027397,2]
[354936555,1740833447839,-500.0,0.00027397,2]
[354936556,1740833447849,-500.0,0.00027397,2]
[354936557,1740833447858,-1468.21,0.00027397,2]
[354936558,1740833447868,-788.3,0.00027397,2]
[354936559,1740833447877,-1393.14,0.00027397,2]
[354936560,1740833447887,-1468.46,0.00027397,2]
[354936561,1740833447896,-500.0,0.00027397,2]
[354936562,1740833447907,-152.9692254,0.00027397,2]
[354936563,1740833447916,-901.66,0.00027397,2]
[354936564,1740833447926,-500.0,0.00027397,2]
[354936565,1740833447936,-986.25,0.00027397,2]
[354936566,1740833447945,-1564.88,0.00027397,2]
[354936567,1740833447954,-551.84343006,0.00027397,2]
[354936568,1740833447964,-500.0,0.00027397,2]
[354936569,1740833447973,-500.0,0.00027397,2]
[354936570,1740833447983,-2059.26,0.00027397,2]
[354936571,1740833447993,-338.0085488,0.00027397,2]
[354936572,1740833448003,-507.85855244,0.00027397,2]
[354936573,1740833448013,-500.0,0.00027397,2]
[354936574,1740833448023,-500.0,0.00027397,2]
[354936575,1740833448034,-1096.82,0.00027397,2]
[354936576,1740833448045,-511.94020148,0.00027397,2]
[354936577,1740833448055,-510.57839051,0.00027397,2]
[354936578,1740833448064,-500.0,0.00027397,2]
[354936579,1740833448075,-1083.42,0.00027397,2]
[354936580,1740833448086,-500.0,0.00027397,2]
[354936581,1740833448096,-500.0,0.00027397,2]
[354936582,1740833448106,-1738.19,0.00027397,2]
[354936583,1740833448120,-812.89,0.00027397,2]
[354936584,1740833448130,-500.0,0.00027397,2]
[354936585,1740833448139,-657.32,0.00027397,2]
[354936586,1740833448148,-500.0,0.00027397,2]
[354936587,1740833448159,-500.0,0.00027397,2]
[354936588,1740833448169,-500.0,0.00027397,2]
[354936589,1740833448179,-500.0,0.00027397,2]
[354936590,1740833448188,-500.0,0.00027397,2]
[354936591,1740833448199,-500.0,0.00027397,2]
[354936592,1740833448209,-500.0,0.00027397,2]
[354936593,1740833448219,-516.17960622,0.00027397,2]
[354936594,1740833448228,-502.45622114,0.00027397,2]
[354936595,1740833448238,-500.0,0.00027397,2]
[354936596,1740833448248,-500.0,0.00027397,2]
[354936597,1740833448257,-747.08,0.00027397,2]
[354936598,1740833448267,-510.14916752,0.00027397,2]
[354936599,1740833448277,-500.0,0.00027397,2]
[354936600,1740833448287,-500.0,0.00027397,2]
[354936601,1740833448296,-500.0,0.00027397,2]
[354936602,1740833448306,-500.0,0.00027397,2]
[354936603,1740833448316,-500.0,0.00027397,2]
[354936604,1740833448326,-1198.46,0.00027397,2]
[354936605,1740833448336,-1743.97,0.00027397,2]
[354936606,1740833448346,-1050.83,0.00027397,2]
[354936607,1740833448355,-1076.92,0.00027397,2]
[354936608,1740833448365,-524.8706757,0.00027397,2]
[354936609,1740833448374,-522.19161912,0.00027397,2]
[354936610,1740833448384,-872.52,0.00027397,2]
[354936611,1740833448394,-508.69649447,0.00027397,2]
[354936612,1740833448404,-512.47063589,0.00027397,2]
[354936613,1740833448413,-1087.09,0.00027397,2]
[354936614,1740833448423,-500.0,0.00027397,2]
[354936615,1740833448432,-500.0,0.00027397,2]
[354936616,1740833448442,-500.0,0.00027397,2]
[354936617,1740833448451,-1331.97,0.00027397,2]
[354936618,1740833448461,-500.0,0.00027397,2]
[354936619,1740833448470,-1930.76,0.00027397,2]
[354936620,1740833448479,-500.0,0.00027397,2]
[354936621,1740833448489,-500.0,0.00027397,2]
[354936622,1740833448498,-511.19700045,0.00027397,2]
[354936623,1740833448508,-500.0,0.00027397,2]
[354936624,1740833448517,-1054.65,0.00027397,2]
[354936625,1740833448527,-500.0,0.00027397,2]
[354936626,1740833448536,-506.50290105,0.00027397,2]
[354936627,1740833448546,-500.0,0.00027397,2]
[354936628,1740833448556,-500.0,0.00027397,2]
[354936629,1740833448565,-500.0,0.00027397,2]
[354936630,1740833448575,-920.11,0.00027397,2]
[354936631,1740833448585,-1583.1,0.00027397,2]
[354936632,1740833448596,-608.2023768,0.00027397,2]
[354936633,1740833448606,-1177.1,0.00027397,2]
[354936634,1740833448615,-1070.52,0.00027397,2]
[354936635,1740833448625,-1296.41,0.00027397,2]
[354936636,1740833448635,-500.0,0.00027397,2]
[354936637,1740833448644,-959.24,0.00027397,2]
[354936638,1740833448655,-1030.13,0.00027397,2]
[354936639,1740833448664,-500.0,0.00027397,2]
[354936640,1740833448673,-500.0,0.00027397,2]
[354936641,1740833448683,-500.0,0.00027397,2]
[354936642,1740833448692,-500.0,0.00027397,2]
[354936643,1740833448702,-500.0,0.00027397,2]
[354936644,1740833448711,-500.0,0.00027397,2]
[354936645,1740833448722,-1751.0,0.00027397,2]
[354936646,1740833448731,-902.51,0.00027397,2]
[354936647,1740833448741,-797.18,0.00027397,2]
[354936648,1740833448751,-500.0,0.00027397,2]
[354936649,1740833448760,-515.06445665,0.00027397,2]
[354936650,1740833448769,-500.0,0.00027397,2]
[354936651,1740833448779,-500.0,0.00027397,2]
[354936652,1740833448788,-500.0,0.00027397,2]
[354936653,1740833448798,-500.0,0.00027397,2]
[354936654,1740833448808,-500.0,0.00027397,2]
[354936655,1740833448818,-2345.91,0.00027397,2]
[354936656,1740833448829,-500.0,0.00027397,2]
[354936657,1740833448839,-497.27753982,0.00027397,2]
[354936658,1740833448848,-507.3098625,0.00027397,2]
[354936659,1740833448858,-2465.22,0.00027397,2]
[354936660,1740833448867,-508.71048289,0.00027397,2]
[354936661,1740833448877,-1405.52,0.00027397,2]
[354936662,1740833448888,-500.0,0.00027397,2]
[354936663,1740833448897,-1191.22,0.00027397,2]
[354936664,1740833448908,-500.0,0.00027397,2]
[354936665,1740833448919,-1381.76,0.00027397,2]
[354936666,1740833448929,-183.15820345,0.00027397,2]
[354936667,1740833448939,-500.0,0.00027397,2]
[354936668,1740833448949,-500.0,0.00027397,2]
[354936669,1740833448959,-500.0,0.00027397,2]
[354936670,1740833448968,-500.0,0.00027397,2]
[354936671,1740833448978,-512.39090077,0.00027397,2]
[354936672,1740833448988,-517.00020812,0.00027397,2]
[354936673,1740833448997,-1131.14,0.00027397,2]
[354936674,1740833449006,-500.0,0.00027397,2]
[354936675,1740833449017,-500.0,0.00027397,2]
[354936676,1740833449027,-500.0,0.00027397,2]
[354936677,1740833449040,-523.96022941,0.00027397,2]
[354936678,1740833449050,-500.0,0.00027397,2]
[354936679,1740833449060,-2343.43,0.00027397,2]
[354936680,1740833449069,-500.0,0.00027397,2]
[354936681,1740833449080,-517.25392123,0.00027397,2]
[354936682,1740833449090,-500.0,0.00027397,2]
[354936683,1740833449100,-500.0,0.00027397,2]
[354936684,1740833449110,-500.0,0.00027397,2]
[354936685,1740833449120,-506.43686377,0.00027397,2]
[354936686,1740833449129,-500.0,0.00027397,2]
[354936687,1740833449139,-522.22428532,0.00027397,2]
[354936688,1740833449150,-500.0,0.00027397,2]
[354936689,1740833449160,-232.88959696,0.00027397,2]
[354936690,1740833449171,-500.0,0.00027397,2]
[354936691,1740833449181,-921.38,0.00027397,2]
[354936692,1740833449191,-582.47,0.00027397,2]
[354936693,1740833449201,-1675.31,0.00027397,2]
[354936694,1740833449211,-570.36,0.00027397,2]
[354936695,1740833449220,-500.0,0.00027397,2]
[354936696,1740833449230,-1894.88,0.00027397,2]
[354936697,1740833449240,-500.0,0.00027397,2]
[354936698,1740833449249,-513.16213411,0.00027397,2]
[354936699,1740833449259,-1379.08,0.00027397,2]
[354936700,1740833449270,-500.0,0.00027397,2]
[354936701,1740833449280,-2095.26,0.00027397,2]
[354936702,1740833449289,-511.22289555,0.00027397,2]
[354936703,1740833449299,-500.0,0.00027397,2]
[354936704,1740833449309,-500.0,0.00027397,2]
[354936705,1740833449319,-500.0,0.00027397,2]
[354936706,1740833449331,-1428.14,0.00027397,2]
[354936707,1740833449341,-500.0,0.00027397,2]
[354936708,1740833449351,-602.83835728,0.00027397,2]
[354936709,1740833449360,-1968.3,0.00027397,2]
[354936710,1740833449370,-500.0,0.00027397,2]
[354936711,1740833449380,-500.0,0.00027397,2]
[354936712,1740833449390,-1521.61,0.00027397,2]
[354936713,1740833449400,-1064.01,0.00027397,2]
[354936714,1740833449410,-511.08177513,0.00027397,2]
[354936715,1740833449420,-517.45678555,0.00027397,2]
[354936716,1740833449430,-1026.4,0.00027397,2]
[354936717,1740833449439,-500.0,0.00027397,2]
[354936718,1740833449449,-724.5,0.00027397,2]
[354936719,1740833449459,-500.0,0.00027397,2]
[354936720,1740833449468,-500.0,0.00027397,2]
[354936721,1740833449477,-1083.68,0.00027397,2]
[354936722,1740833449487,-1647.41,0.00027397,2]
[354936723,1740833449497,-179.0303579,0.00027397,2]
[354936724,1740833449506,-500.0,0.00027397,2]
[354936725,1740833449516,-500.0,0.00027397,2]
[354936726,1740833449529,-1725.48,0.00027397,2]
[354936727,1740833449539,-596.6,0.00027397,2]
[354936728,1740833449548,-518.57679932,0.00027397,2]
[354936729,1740833449558,-1571.17,0.00027397,2]
[354936730,1740833449567,-500.0,0.00027397,2]
[354936731,1740833449578,-2453.22,0.00027397,2]
[354936732,1740833449588,-991.14,0.00027397,2]
[354936733,1740833449598,-500.0,0.00027397,2]
[354936734,1740833449607,-613.47,0.00027397,2]
[354936735,1740833449617,-798.02,0.00027397,2]
[354936736,1740833449627,-1506.81,0.00027397,2]
[354936737,1740833449636,-914.4,0.00027397,2]
[354936738,1740833449645,-872.83,0.00027397,2]
[354936739,1740833449655,-5712.46,0.00027397,2]
[354936740,1740833449664,-500.0,0.00027397,2]
[354936741,1740833449674,-500.0,0.00027397,2]
[354936742,1740833449864,-895.69,0.00027397,2]
[354936743,1740833449875,-1962.61,0.00027397,2]
[354936744,1740833449885,-519.81598254,0.00027397,2]
[354936745,1740833449896,-500.0,0.00027397,2]
[354936746,1740833449905,-500.0,0.00027397,2]
[354936747,1740833449915,-3645.52,0.00027397,2]
[354936748,1740833449925,-500.0,0.00027397,2]
[354936749,1740833449934,-500.0,0.00027397,2]
[354936750,1740833449944,-1477.69,0.00027397,2]
[354936751,1740833449953,-500.0,0.00027397,2]
[354936752,1740833449963,-1690.41,0.00027397,2]
[354936753,1740833449973,-947.04,0.00027397,2]
[354936754,1740833449982,-872.17,0.00027397,2]
[354936755,1740833449992,-536.25317991,0.00027397,2]
[354936756,1740833450002,-803.5,0.00027397,2]
[354936757,1740833450012,-505.95907238,0.00027397,2]
[354936758,1740833450022,-1079.21,0.00027397,2]
[354936759,1740833450032,-2965.41,0.00027397,2]
[354936760,1740833450042,-500.0,0.00027397,2]
[354936761,1740833450052,-641.88344833,0.00027397,2]
[354936762,1740833450061,-500.0,0.00027397,2]
[354936763,1740833450070,-500.0,0.00027397,2]
[354936764,1740833450081,-537.92,0.00027397,2]
[354936765,1740833450091,-3386.36,0.00027397,2]
[354936766,1740833450100,-2602.07,0.00027397,2]
[354936767,1740833450109,-515.92839775,0.00027397,2]
[354936768,1740833450118,-2509.94,0.00027397,2]
[354936769,1740833450128,-500.0,0.00027397,2]
[354936770,1740833450137,-2594.08,0.00027397,2]
[354936771,1740833450147,-1701.49,0.00027397,2]
[354936772,1740833450156,-511.94170326,0.00027397,2]
[354936773,1740833450165,-1761.95,0.00027397,2]
[354936774,1740833450175,-2897.42,0.00027397,2]
[354936775,1740833450184,-874.94,0.00027397,2]
[354936776,1740833450193,-500.0,0.00027397,2]
[354936777,1740833450203,-500.0,0.00027397,2]
[354936778,1740833450213,-500.0,0.00027397,2]
[354936779,1740833450223,-373.00064298,0.00027397,2]
[354936780,1740833450232,-500.0,0.00027397,2]
[354936781,1740833450242,-500.0,0.00027397,2]
[354936782,1740833450251,-500.0,0.00027397,7]
[354936783,1740833450261,-9640.48,0.00027397,2]
[354936784,1740833450270,-500.0,0.00027397,2]
[354936785,1740833450280,-500.0,0.00027397,2]
[354936786,1740833450289,-511.54698586,0.00027397,2]
[354936787,1740833450300,-1592.53,0.00027397,2]
[354936788,1740833450310,-500.0,0.00027397,2]
[354936789,1740833450319,-1506.91,0.00027397,2]
[354936790,1740833450330,-927.23,0.00027397,2]
[354936791,1740833450340,-839.52,0.00027397,2]
[354936792,1740833450350,-500.0,0.00027397,2]
[354936793,1740833450360,-500.0,0.00027397,2]
[354936794,1740833450369,-507.40944954,0.00027397,2]
[354936795,1740833450379,-2277.82,0.00027397,2]
[354936796,1740833450388,-2281.42,0.00027397,2]
[354936797,1740833450398,-511.70908566,0.00027397,2]
[354936798,1740833450407,-500.0,0.00027397,2]
[354936799,1740833450417,-500.0,0.00027397,2]
[354936800,1740833450426,-500.0,0.00027397,2]
[354936801,1740833450435,-793.7,0.00027397,2]
[354936802,1740833450445,-1352.23,0.00027397,2]
[354936803,1740833450455,-500.0,0.00027397,2]
[354936804,1740833450464,-500.0,0.00027397,2]
[354936805,1740833450474,-47029.96,0.00027397,2]
[354936806,1740833450483,-3204.16,0.00027397,2]
[354936807,1740833450493,-500.0,0.00027397,2]
[354936808,1740833450503,-3100.84,0.00027397,2]
[354936809,1740833450513,-1164.25,0.00027397,2]
[354936810,1740833450523,-500.0,0.00027397,2]
[354936811,1740833450532,-688.21,0.00027397,2]
[354936812,1740833450541,-1363.76,0.00027397,2]
[354936813,1740833450551,-1102.01,0.00027397,2]
[354936814,1740833450561,-500.0,0.00027397,2]
[354936815,1740833450570,-957.38,0.00027397,2]
[354936816,1740833450580,-2378.55,0.00027397,2]
[354936817,1740833450590,-500.0,0.00027397,2]
[354936818,1740833450600,-500.0,0.00027397,2]
[354936819,1740833450609,-500.0,0.00027397,2]
[354936820,1740833450619,-1248.96,0.00027397,2]
[354936821,1740833450628,-1195.58,0.00027397,2]
[354936822,1740833450637,-906.5,0.00027397,2]
[354936823,1740833450646,-500.0,0.00027397,2]
[354936824,1740833450656,-651.1,0.00027397,2]
[354936825,1740833450665,-283.52987887,0.00027397,2]
[354936826,1740833450675,-500.0,0.00027397,2]
[354936827,1740833450684,-500.0,0.00027397,2]
[354936828,1740833450694,-506.07038468,0.00027397,2]
[354936829,1740833450703,-500.0,0.00027397,2]
[354936830,1740833450713,-904.71,0.00027397,2]
[354936831,1740833450723,-2178.26,0.00027397,2]
[354936832,1740833450732,-500.0,0.00027397,2]
[354936833,1740833450742,-2087.54,0.00027397,2]
[354936834,1740833450751,-500.0,0.00027397,2]
[354936835,1740833450761,-6402.31,0.00027397,2]
[354936836,1740833450770,-500.0,0.00027397,2]
[354936837,1740833450780,-508.23554222,0.00027397,2]
[354936838,1740833450789,-4752.22,0.00027397,2]
[354936839,1740833450798,-500.0,0.00027397,2]
[354936840,1740833450808,-500.0,0.00027397,2]
[354936841,1740833450817,-507.68709364,0.00027397,2]
[354936842,1740833450827,-500.0,0.00027397,2]
[354936843,1740833450836,-500.0,0.00027397,2]
[354936844,1740833450846,-500.0,0.00027397,2]
[354936845,1740833450855,-1701.43,0.00027397,2]
[354936846,1740833450865,-2011.37,0.00027397,2]
[354936847,1740833450875,-1497.32,0.00027397,2]
[354936848,1740833450884,-500.0,0.00027397,2]
[354936849,1740833450893,-884.77,0.00027397,2]
[354936850,1740833450904,-2885.43,0.00027397,2]
[354936851,1740833450913,-500.0,0.00027397,2]
[354936852,1740833450922,-3053.8,0.00027397,2]
[354936853,1740833450932,-1257.54,0.00027397,2]
[354936854,1740833450942,-1126.33,0.00027397,2]
[354936855,1740833450951,-15150.64,0.00027397,2]
[354936856,1740833450961,-515.4863937,0.00027397,2]
[354936857,1740833450971,-1856.02,0.00027397,2]
[354936858,1740833450980,-1333.22,0.00027397,2]
[354936859,1740833450990,-510.61056868,0.00027397,2]
[354936860,1740833450999,-500.0,0.00027397,2]
[354936861,1740833451009,-500.0,0.00027397,2]
[354936862,1740833451019,-500.0,0.00027397,2]
[354936863,1740833451029,-506.57686539,0.00027397,2]
[354936864,1740833451043,-500.0,0.00027397,2]
[354936865,1740833451053,-1734.66,0.00027397,2]
[354936866,1740833451062,-500.0,0.00027397,2]
[354936867,1740833451071,-500.0,0.00027397,2]
[354936868,1740833451081,-902.33,0.00027397,2]
[354936869,1740833451090,-1000.0,0.00027397,2]
[354936870,1740833451100,-500.0,0.00027397,2]
[354936871,1740833451109,-507.64101777,0.00027397,2]
[354936872,1740833451119,-500.0,0.00027397,2]
[354936873,1740833451128,-3093.9,0.00027397,2]
[354936874,1740833451137,-653.37,0.00027397,2]
[354936875,1740833451147,-500.0,0.00027397,2]
[354936876,1740833451156,-2448.41,0.00027397,2]
[354936877,1740833451165,-500.0,0.00027397,2]
[354936878,1740833451175,-500.0,0.00027397,2]
[354936879,1740833451185,-500.0,0.00027397,2]
[354936880,1740833451194,-500.0,0.00027397,2]
[354936881,1740833451204,-500.0,0.00027397,2]
[354936882,1740833451214,-500.0,0.00027397,2]
[354936883,1740833451223,-500.0,0.00027397,2]
[354936884,1740833451233,-500.0,0.00027397,2]
[354936885,1740833451243,-3734.45,0.00027397,2]
[354936886,1740833451252,-500.0,0.00027397,2]
[354936887,1740833451262,-500.0,0.00027397,2]
[354936888,1740833451271,-7871.01,0.00027397,2]
[354936889,1740833451281,-500.0,0.00027397,2]
[354936890,1740833451291,-500.0,0.00027397,2]
[354936891,1740833451300,-500.0,0.00027397,2]
[354936892,1740833451310,-500.0,0.00027397,2]
[354936893,1740833451319,-507.55179227,0.00027397,2]
[354936894,1740833451329,-777.09,0.00027397,2]